fUST/lending_fUST_20260110
["ID","MTS","AMOUNT","RATE_DAILY","PERIOD"]
[401147222,1767976539698,2146.93,0.00030136,120]
[401147223,1767976539938,2146.93,0.00030136,120]
[401147224,1767976540173,2146.93,0.00030136,120]
[401147225,1767976540409,2146.93,0.00030136,120]
[401147226,1767976540662,2146.93,0.00030136,120]
[401147227,1767976540904,2146.93,0.00030136,120]
[401147228,1767976541159,2146.93,0.00030136,120]
[401147229,1767976541401,2146.93,0.00030136,120]
[401147230,1767976541690,2146.93,0.00030136,120]
[401147231,1767976541935,2146.93,0.00030136,120]
[401147232,1767976542265,2146.93,0.00030136,120]
[401147233,1767976542494,2146.93,0.00030136,120]
[401147234,1767976543110,2146.93,0.00030136,120]
[401147235,1767976543306,500.0,0.00030136,120]
[401147236,1767976543370,2146.93,0.00030136,120]
[401147237,1767976543438,500.0,0.00030136,120]
[401147238,1767976543575,2146.93,0.00030136,120]
[401147239,1767976543636,500.0,0.00030136,120]
[401147240,1767976543708,500.0,0.00030136,120]
[401147241,1767976543872,2146.93,0.00030136,120]
[401147242,1767976543946,182.7,0.00030136,120]
[401147243,1767976544105,2146.93,0.00030136,120]
[401147244,1767976544351,2146.93,0.00030136,120]
[401147245,1767976544602,2146.93,0.00030136,120]
[401147246,1767976544940,2146.93,0.00030136,120]
[401147247,1767976545184,2146.93,0.00030136,120]
[401147248,1767976545415,2146.93,0.00030136,120]
[401147249,1767976545490,500.0,0.00030136,120]
[401147250,1767976545642,2147.0335255,0.00030136,120]
[401147251,1767976545709,556.71429765,0.00030136,120]
[401147252,1767976546190,500.0,0.00030136,120]
[401147253,1767976546433,500.0,0.00030136,120]
[401147254,1767976547027,500.0,0.00030136,120]
[401147255,1767976547590,500.0,0.00030136,120]
[401147256,1767976547823,500.0,0.00030136,120]
[401147257,1767976548938,500.0,0.00030136,120]
[401147258,1767976549177,500.0,0.00030136,120]
[401147259,1767976549446,500.0,0.00030136,120]
[401147260,1767976551235,500.0,0.00030136,120]
[401147261,1767976551464,500.0,0.00030136,120]
[401147262,1767976551531,500.0,0.00030136,120]
[401147263,1767976551710,500.0,0.00030136,120]
[401147264,1767976551778,500.0,0.00030136,120]
[401147265,1767976551950,524.41429658,0.00030136,120]
[401147266,1767976554018,504.20966635,0.00030136,120]
[401147267,1767976555169,536.03994864,0.00030136,120]
[401147268,1767976555767,503.03923673,0.00030136,120]
[401147269,1767976556842,300.43903479,0.00030136,120]
[401147270,1767976556915,500.0,0.00030136,120]
[401147271,1767976556981,500.0,0.00030136,120]
[401147272,1767976557184,466.10244166,0.00030136,120]
[401147273,1767976557247,500.0,0.00030136,120]
[401147274,1767976557529,500.0,0.00030136,120]
[401147275,1767976558725,508.93984144,0.00030136,120]
[401147276,1767976570729,500.41954187,0.00030136,120]
[401147277,1767976571246,326.02675887,0.00030136,120]
[401147278,1767976571712,500.0,0.00030136,120]
[401147279,1767976571948,523.23287352,0.00030136,120]
[401147280,1767976574909,500.0,0.00030136,120]
[401147281,1767976575148,500.0,0.00030136,120]
[401147282,1767976575516,500.0,0.00030136,120]
[401147283,1767976575747,627.95337349,0.00030136,120]
[401147284,1767976575985,251.03498882,0.00030136,120]
[401147285,1767976577709,500.0,0.00030136,120]
[401147286,1767976578194,429.49218943,0.00030136,120]
[401147287,1767976579296,500.0,0.00030136,120]
[401147288,1767976579556,515.50185967,0.00030136,120]
[401147289,1767976580364,466.37086168,0.00030136,120]
[401147290,1767976582503,500.0,0.00030136,120]
[401147291,1767976582581,500.0,0.00030136,120]
[401147292,1767976584428,500.0,0.00030136,120]
[401147293,1767976584643,500.0,0.00030136,120]
[401147294,1767976584727,496.45519731,0.00030136,120]
[401147295,1767976585427,500.0,0.00030136,120]
[401147296,1767976585654,500.0,0.00030136,120]
[401147297,1767976585893,509.97268736,0.00030136,120]
[401147298,1767976587723,500.0,0.00030136,120]
[401147299,1767976587967,500.0,0.00030136,120]
[401147300,1767976588147,473.83592111,0.00030136,120]
[401147301,1767976588235,500.0,0.00030136,120]
[401147302,1767976588300,500.0,0.00030136,120]
[401147303,1767976588493,307.92684413,0.00030136,120]
[401147304,1767976594310,500.0,0.00030136,120]
[401147305,1767976594560,536.7042571,0.00030136,120]
[401147306,1767976595841,286.56410492,0.00030136,120]
[401147307,1767976595911,500.0,0.00030136,120]
[401147308,1767976596132,510.85818697,0.00030136,120]
[401147309,1767976596653,500.0,0.00030136,120]
[401147310,1767976596908,508.19811784,0.00030136,120]
[401147311,1767976597735,500.0,0.00030136,120]
[401147312,1767976597993,500.0,0.00030136,120]
[401147313,1767976600118,376.25013882,0.00030136,120]
[401147314,1767976606048,457.68462192,0.00030136,120]
[401147315,1767976606145,500.0,0.00030136,120]
[401147316,1767976606394,270.19877829,0.00030136,120]
[401147317,1767976606855,500.0,0.00030136,120]
[401147318,1767976607098,333.14368039,0.00030136,120]
[401147319,1767976608912,285.38822648,0.00030136,120]
[401147320,1767976610742,500.0,0.00030136,120]
[401147321,1767976610986,546.79675592,0.00030136,120]
[401147322,1767976612732,502.96966084,0.00030136,120]
[401147323,1767976612862,308.08736795,0.00030136,120]
[401147324,1767976614587,504.60954121,0.00030136,120]
[401147325,1767976614978,500.0,0.00030136,120]
[401147326,1767976615229,500.0,0.00030136,120]
[401147327,1767976617017,500.0,0.00030136,120]
[401147328,1767976617346,510.77560464,0.00030136,120]
[401147329,1767976617608,502.8788875,0.00030136,120]
[401147330,1767976618177,501.93707988,0.00030136,120]
[401147331,1767976619304,578.40319339,0.00030136,120]
[401147332,1767976620101,500.0,0.00030136,120]
[401147333,1767976620346,533.03053386,0.00030136,120]
[401147334,1767976621155,500.0,0.00030136,120]
[401147335,1767976621408,534.61468063,0.00030136,120]
[401147336,1767976621958,500.0,0.00030136,120]
[401147337,1767976622068,500.0,0.00030136,120]
[401147338,1767976623965,426.02472294,0.00030136,120]
[401147339,1767976629720,500.0,0.00030136,120]
[401147340,1767976629956,605.34,0.00030136,120]
[401147341,1767976630114,223.24081432,0.00030136,120]
[401147342,1767976631753,500.0,0.00030136,120]
[401147343,1767976631920,500.0,0.00030136,120]
[401147344,1767976632000,500.0,0.00030136,120]
[401147345,1767976632179,506.83788037,0.00030136,120]
[401147346,1767976632266,160.21801641,0.00030136,120]
[401147347,1767976634063,358.37404461,0.00030136,120]
[401147348,1767976634757,500.0,0.00030136,120]
[401147349,1767976635082,500.0,0.00030136,120]
[401147350,1767976635337,569.26832915,0.00030136,120]
[401147351,1767976635860,504.27357954,0.00030136,120]
[401147352,1767976637683,352.50922545,0.00030136,120]
[401147353,1767976640986,500.0,0.00030136,120]
[401147354,1767976641248,516.7835389,0.00030136,120]
[401147355,1767976641313,508.71734791,0.00030136,120]
[401147356,1767976641792,491.88650002,0.00030136,120]
[401147357,1767976642140,500.0,0.00030136,120]
[401147358,1767976642368,500.0,0.00030136,120]
[401147359,1767976643814,502.72778083,0.00030136,120]
[401147360,1767976643874,208.72322597,0.00030136,120]
[401147361,1767976647617,500.0,0.00030136,120]
[401147362,1767976647865,500.0,0.00030136,120]
[401147363,1767976648169,500.0,0.00030136,120]
[401147364,1767976648407,639.48,0.00030136,120]
[401147365,1767976650426,506.51060762,0.00030136,120]
[401147366,1767976651593,500.0,0.00030136,120]
[401147367,1767976659053,503.27379602,0.00030136,120]
[401147368,1767976659365,500.0,0.00030136,120]
[401147369,1767976659637,591.01648252,0.00030136,120]
[401147370,1767976659836,500.0,0.00030136,120]
[401147371,1767976661920,500.0,0.00030136,120]
[401147372,1767976662154,269.62620414,0.00030136,120]
[401147373,1767976666939,505.63798538,0.00030136,120]
[401147374,1767976668317,500.0,0.00030136,120]
[401147375,1767976668544,500.0,0.00030136,120]
[401147376,1767976668772,499.07049057,0.00030136,120]
[401147377,1767976668963,524.71,0.00030136,120]
[401147378,1767976673327,500.0,0.00030136,120]
[401147379,1767976673571,245.77,0.00030136,120]
[401147380,1767976674789,182.16078604,0.00030136,120]
[401147381,1767976675736,500.0,0.00030136,120]
[401147382,1767976676003,521.14281031,0.00030136,120]
[401147383,1767976676562,550.60505187,0.00030136,120]
[401147384,1767976678894,500.0,0.00030136,120]
[401147385,1767976679137,501.7149259,0.00030136,120]
[401147386,1767976679195,500.0,0.00030136,120]
[401147387,1767976679420,500.0,0.00030136,120]
[401147388,1767976679655,170.4342342,0.00030136,120]
[401147389,1767976680608,501.6907096,0.00030136,120]
[401147390,1767976681573,500.0,0.00030136,120]
[401147391,1767976681972,500.0,0.00030136,120]
[401147392,1767976682260,512.93264499,0.00030136,120]
[401147393,1767976682493,504.308528,0.00030136,120]
[401147394,1767976683738,265.20362306,0.00030136,120]
[401147395,1767976687633,500.0,0.00030136,120]
[401147396,1767976689758,500.0,0.00030136,120]
[401147397,1767976690039,500.0,0.00030136,120]
[401147398,1767976690309,500.0,0.00030136,120]
[401147399,1767976690546,500.0,0.00030136,120]
[401147400,1767976690787,500.0,0.00030136,120]
[401147401,1767976691032,500.0,0.00030136,120]
[401147402,1767976691267,196.09,0.00030136,120]
[401147403,1767976693610,500.0,0.00030136,120]
[401147404,1767976696512,158.94735849,0.00030136,120]
[401147405,1767976697890,271.43021353,0.00030136,120]
[401147406,1767976698033,500.0,0.00030136,120]
[401147407,1767976698591,500.0,0.00030136,120]
[401147408,1767976698880,500.0,0.00030136,120]
[401147409,1767976699626,595.71346535,0.00030136,120]
[401147410,1767976700646,577.42065993,0.00030136,120]
[401147411,1767976701998,462.70043964,0.00030136,120]
[401147412,1767976703503,500.0,0.00030136,120]
[401147413,1767976703825,505.07373523,0.00030136,120]
[401147414,1767976704191,513.31186817,0.00030136,120]
[401147415,1767976706619,500.0,0.00030136,120]
[401147416,1767976706851,500.0,0.00030136,120]
[401147417,1767976707094,308.92,0.00030136,120]
[401147418,1767976708804,500.0,0.00030136,120]
[401147419,1767976709070,500.0,0.00030136,120]
[401147420,1767976709319,566.86527333,0.00030136,120]
[401147421,1767976710987,500.0,0.00030136,120]
[401147422,1767976713658,500.79323728,0.00030136,120]
[401147423,1767976717754,510.18694857,0.00030136,120]
[401147424,1767976719627,462.35527973,0.00030136,120]
[401147425,1767976723894,297.47355822,0.00030136,120]
[401147426,1767976725851,504.62722294,0.00030136,120]
[401147427,1767976728502,501.9829848,0.00030136,120]
[401147428,1767976729859,159.05,8.447e-05,2]
[401147429,1767976730517,508.5333018,0.00030136,120]
[401147430,1767976740838,500.65483179,0.00030136,120]
[401147431,1767976742745,419.03273165,0.00030136,120]
[401147432,1767976746189,500.0,0.00030136,120]
[401147433,1767976746417,226.74180123,0.00030136,120]
[401147434,1767976749093,509.15315279,0.00030136,120]
[401147435,1767976751249,500.0,0.00030136,120]
[401147436,1767976751335,500.0,0.00030136,120]
[401147437,1767976751589,505.03139851,0.00030136,120]
[401147438,1767976752057,500.0,0.00030136,120]
[401147439,1767976752291,283.55803964,0.00030136,120]
[401147440,1767976763712,500.0,0.00030136,120]
[401147441,1767976763961,500.0,0.00030136,120]
[401147442,1767976770873,525.31747225,0.00030136,120]
[401147443,1767976771909,500.0,0.00030136,120]
[401147444,1767976772174,500.0,0.00030136,120]
[401147445,1767976772416,391.04213083,0.00030136,120]
[401147446,1767976787368,507.41269073,0.00030136,120]
[401147447,1767976791098,286.37522088,0.00030136,120]
[401147448,1767976794515,505.80486985,0.00030136,120]
[401147449,1767976798017,509.61804031,0.00030136,120]
[401147450,1767976800187,550.88184496,0.00030136,120]
[401147451,1767976801861,527.6288144,0.00030136,120]
[401147452,1767976807201,500.70237289,0.00030136,120]
[401147453,1767976810815,502.6147097,0.00030136,120]
[401147454,1767976814107,575.41626305,0.00030136,120]
[401147455,1767976817387,537.90513033,0.00030136,120]
[401147456,1767976818196,500.0,0.00030136,120]
[401147457,1767976818437,623.16213958,0.00030136,120]
[401147458,1767976819683,381.68789933,0.00030136,120]
[401147459,1767976823266,500.0,0.00030136,120]
[401147460,1767976823514,500.0,0.00030136,120]
[401147461,1767976823799,500.0,0.00030136,120]
[401147462,1767976829796,505.02814254,0.00030136,120]
[401147463,1767976831924,577.59109928,0.00030136,120]
[401147464,1767976833660,583.97415567,0.00030136,120]
[401147465,1767976834577,605.34901474,0.00030136,120]
[401147466,1767976835502,517.19865936,0.00030136,120]
[401147467,1767976840540,544.69264277,0.00030136,120]
[401147468,1767976842490,509.24874609,0.00030136,120]
[401147469,1767976844438,578.14057293,0.00030136,120]
[401147470,1767976844498,500.0,0.00030136,120]
[401147471,1767976844686,258.62973483,0.00030136,120]
[401147472,1767976846011,526.69181479,0.00030136,120]
[401147473,1767976857333,522.75202853,0.00030136,120]
[401147474,1767976857873,501.32640267,0.00030136,120]
[401147475,1767976864293,508.17620101,0.00030136,120]
[401147476,1767976865246,500.0,0.00030136,120]
[401147477,1767976865477,264.74765926,0.00030136,120]
[401147478,1767976866144,459.38433206,0.00030136,120]
[401147479,1767976868809,508.91865396,0.00030136,120]
[401147480,1767976870859,500.0,0.00030136,120]
[401147481,1767976871092,500.0,0.00030136,120]
[401147482,1767976871543,513.21360826,0.00030136,120]
[401147483,1767976875237,500.0,0.00030136,120]
[401147484,1767976875492,500.0,0.00030136,120]
[401147485,1767976875725,500.0,0.00030136,120]
[401147486,1767976895229,500.0,0.00030136,120]
[401147487,1767976895472,500.0,0.00030136,120]
[401147488,1767976895721,500.0,0.00030136,120]
[401147489,1767976908947,500.0,0.00030136,120]
[401147490,1767976909177,500.0,0.00030136,120]
[401147491,1767976909413,500.0,0.00030136,120]
[401147492,1767976928636,200.0,0.00030136,120]
[401147493,1767976929199,200.0,0.00030136,120]
[401147494,1767976931267,500.0,0.00030136,120]
[401147495,1767976931540,500.0,0.00030136,120]
[401147496,1767976932147,500.0,0.00030136,120]
[401147497,1767976932430,500.0,0.00030136,120]
[401147498,1767976932697,554.90549307,0.00030136,120]
[401147499,1767976934443,500.0,0.00030136,120]
[401147500,1767976934722,308.84014191,0.00030136,120]
[401147501,1767976938757,500.0,0.00030136,120]
[401147502,1767976939018,500.0,0.00030136,120]
[401147503,1767976939562,500.0,0.00030136,120]
[401147504,1767976939803,500.0,0.00030136,120]
[401147505,1767976940037,500.0,0.00030136,120]
[401147506,1767976949354,500.0,0.00030136,120]
[401147507,1767976949592,500.0,0.00030136,120]
[401147508,1767976949831,500.0,0.00030136,120]
[401147509,1767976952208,615.82895727,0.00030136,120]
[401147510,1767976976475,272.27759559,0.00030136,120]
[401147511,1767976981521,500.0,0.00030136,120]
[401147512,1767976981821,550.79685569,0.00030136,120]
[401147513,1767976990608,500.0,0.00030136,120]
[401147514,1767976990852,516.73051579,0.00030136,120]
[401147515,1767977020487,500.0,0.00030136,120]
[401147516,1767977020716,500.0,0.00030136,120]
[401147517,1767977020960,500.0,0.00030136,120]
[401147518,1767977021193,312.27,0.00030136,120]
[401147519,1767977025621,378.7384185,0.00030136,120]
[401147520,1767977028645,500.0,0.00030136,120]
[401147521,1767977028882,578.43487255,0.00030136,120]
[401147522,1767977036866,500.0,0.00030136,120]
[401147523,1767977037461,500.0,0.00030136,120]
[401147524,1767977039482,500.0,0.00030136,120]
[401147525,1767977039707,458.82741371,0.00030136,120]
[401147526,1767977047733,636.31426963,0.00030136,120]
[401147527,1767977053684,500.0,0.00030136,120]
[401147528,1767977053914,500.0,0.00030136,120]
[401147529,1767977059292,166.24,6.995e-05,2]
[401147530,1767977059698,221.65,7.299e-05,2]
[401147531,1767977060087,277.07,7.603e-05,2]
[401147532,1767977060481,332.48,7.907e-05,2]
[401147533,1767977060872,387.89,8.211e-05,2]
[401147534,1767977061316,443.31,8.515e-05,2]
[401147535,1767977061787,498.72,8.819e-05,2]
[401147536,1767977062988,500.0,0.00030136,120]
[401147537,1767977063274,500.0,0.00030136,120]
[401147538,1767977063584,500.0,0.00030136,120]
[401147539,1767977063813,500.0,0.00030136,120]
[401147540,1767977064046,500.0,0.00030136,120]
[401147541,1767977064279,500.0,0.00030136,120]
[401147542,1767977064523,500.0,0.00030136,120]
[401147543,1767977064772,500.0,0.00030136,120]
[401147544,1767977064943,500.0,0.00030136,120]
[401147545,1767977065015,500.0,0.00030136,120]
[401147546,1767977065176,500.0,0.00030136,120]
[401147547,1767977065435,500.0,0.00030136,120]
[401147548,1767977065672,462.24,0.00030136,120]
[401147549,1767977067115,500.0,0.00030136,120]
[401147550,1767977067368,263.72597343,0.00030136,120]
[401147551,1767977073707,500.0,0.00030136,120]
[401147552,1767977079010,500.0,0.00030136,120]
[401147553,1767977085902,500.0,0.00030136,120]
[401147554,1767977089365,500.0,0.00030136,120]
[401147555,1767977090282,500.0,0.00030136,120]
[401147556,1767977090511,297.55795622,0.00030136,120]
[401147557,1767977093733,500.0,0.00030136,120]
[401147558,1767977094037,281.68217521,0.00030136,120]
[401147559,1767977109777,527.84417898,0.00030136,120]
[401147560,1767977129323,161.96,6.417e-05,2]
[401147561,1767977129741,323.91,6.723e-05,2]
[401147562,1767977130195,485.87,7.029e-05,2]
[401147563,1767977130599,647.82,7.334e-05,2]
[401147564,1767977130996,809.78,7.64e-05,2]
[401147565,1767977131414,971.73,7.945e-05,2]
[401147566,1767977131812,1133.69,8.251e-05,2]
[401147567,1767977132261,1295.64,8.556e-05,2]
[401147568,1767977132662,1457.6,8.862e-05,2]
[401147569,1767977164375,500.0,0.00030136,120]
[401147570,1767977164569,500.0,0.00030136,120]
[401147571,1767977175933,500.0,0.00030136,120]
[401147572,1767977176172,500.0,0.00030136,120]
[401147573,1767977176406,528.21632737,0.00030136,120]
[401147574,1767977182342,500.0,0.00030136,120]
[401147575,1767977182588,643.64672368,0.00030136,120]
[401147576,1767977192102,542.10342444,0.00030136,120]
[401147577,1767977195065,500.0,0.00030136,120]
[401147578,1767977195309,500.0,0.00030136,120]
[401147579,1767977195561,504.27164049,0.00030136,120]
[401147580,1767977200780,500.0,0.00030136,120]
[401147581,1767977201018,500.0,0.00030136,120]
[401147582,1767977201423,500.0,0.00030136,120]
[401147583,1767977205700,207.6,7.249e-05,2]
[401147584,1767977206103,177.05,7.564e-05,2]
[401147585,1767977206126,99.75,7.564e-05,2]
[401147586,1767977206497,345.99,7.879e-05,2]
[401147587,1767977206884,415.19,8.194e-05,2]
[401147588,1767977207375,484.39,8.509e-05,2]
[401147589,1767977207817,553.59,8.825e-05,2]
[401147590,1767977208849,397.13149236,0.00030136,120]
[401147591,1767977218975,500.0,0.00030136,120]
[401147592,1767977219223,500.0,0.00030136,120]
[401147593,1767977219451,500.0,0.00030136,120]
[401147594,1767977219516,340.91006909,0.00030136,120]
[401147595,1767977221532,436.1107255,0.00030136,120]
[401147596,1767977228175,457.20218762,0.00030136,120]
[401147597,1767977228377,323.53907597,0.00030136,120]
[401147598,1767977238902,163.35565135,0.00030136,120]
[401147599,1767977240185,290.97356885,0.00030136,120]
[401147600,1767977244971,607.01631292,0.00030136,120]
[401147601,1767977250969,500.0,0.00030136,120]
[401147602,1767977251232,164.88112424,0.00030136,120]
[401147603,1767977259313,500.0,0.00030136,120]
[401147604,1767977259578,210.0,0.00030136,120]
[401147605,1767977262196,500.0,0.00030136,120]
[401147606,1767977262456,502.20571551,0.00030136,120]
[401147607,1767977269013,500.0,0.00030136,120]
[401147608,1767977269242,500.0,0.00030136,120]
[401147609,1767977269509,500.0,0.00030136,120]
[401147610,1767977279703,160.54,7.089e-05,2]
[401147611,1767977280116,200.68,7.384e-05,2]
[401147612,1767977280547,240.81,7.68e-05,2]
[401147613,1767977281474,280.95,7.975e-05,2]
[401147614,1767977281984,321.08,8.27e-05,2]
[401147615,1767977282389,361.22,8.566e-05,2]
[401147616,1767977282907,401.35,8.861e-05,2]
[401147617,1767977290444,500.0,0.00030136,120]
[401147618,1767977290668,500.0,0.00030136,120]
[401147619,1767977307209,500.0,0.00030136,120]
[401147620,1767977307443,500.0,0.00030136,120]
[401147621,1767977326523,299.58088726,0.00030136,120]
[401147622,1767977331758,-284.70882718,9.298e-05,2]
[401147623,1767977331780,-575.0,0.00011005,2]
[401147624,1767977331801,-548.47905312,0.00011201,2]
[401147625,1767977331824,-335.95641607,0.00011298,2]
[401147626,1767977332697,503.91333035,0.00030136,120]
[401147627,1767977349392,500.0,0.00030136,120]
[401147628,1767977394656,501.74298866,0.00030136,120]
[401147629,1767977396479,281.35434205,0.00030136,120]
[401147630,1767977406236,500.0,0.00030136,120]
[401147631,1767977406496,502.48702315,0.00030136,120]
[401147632,1767977412546,170.912872,6.169e-05,2]
[401147633,1767977425142,500.0,0.00030136,120]
[401147641,1767977432333,-300.0,0.00012228,2]
[401147642,1767977432343,-300.0,0.00012228,2]
[401147643,1767977432353,-300.0,0.00012228,2]
[401147644,1767977432362,-593.0,0.00012228,2]
[401147645,1767977432373,-480.0,0.00012228,2]
[401147646,1767977432382,-105962.81054418,0.00012229,2]
[401147647,1767977432393,-1000.0,0.00012229,2]
[401147652,1767977437768,500.0,0.00030136,120]
[401147655,1767977438447,-500.0,0.00012228,2]
[401147657,1767977438456,-500.0,0.00012228,2]
[401147659,1767977438465,-500.0,0.00012228,2]
[401147661,1767977438475,-500.0,0.00012228,2]
[401147663,1767977438484,-500.0,0.00012228,2]
[401147665,1767977438493,-500.0,0.00012228,2]
[401147667,1767977438502,-476.97218008,0.00012228,2]
[401147669,1767977438517,-23.02781992,0.00012228,2]
[401147671,1767977438526,-500.0,0.00012228,2]
[401147672,1767977438536,-500.0,0.00012228,2]
[401147673,1767977438545,-435.27942791,0.00012228,2]
[401147674,1767977438554,-72.97529093,0.00012228,2]
[401147675,1767977438566,-427.02470907,0.00012228,2]
[401147676,1767977438575,-468.22722687,0.00012228,2]
[401147677,1767977438585,-500.0,0.00012228,2]
[401147678,1767977438595,-500.0,0.00012228,2]
[401147679,1767977438604,-500.0,0.00012228,2]
[401147680,1767977438613,-500.0,0.00012228,2]
[401147681,1767977438622,-500.0,0.00012228,2]
[401147682,1767977438633,-500.0,0.00012228,2]
[401147683,1767977438642,-500.0,0.00012228,2]
[401147684,1767977438651,-500.0,0.00012228,2]
[401147685,1767977438661,-500.0,0.00012228,2]
[401147686,1767977438670,-500.0,0.00012228,2]
[401147687,1767977438679,-500.0,0.00012228,2]
[401147688,1767977438690,-500.0,0.00012228,2]
[401147689,1767977438699,-500.0,0.00012228,2]
[401147690,1767977438709,-500.0,0.00012228,2]
[401147691,1767977438719,-489.34348216,0.00012228,2]
[401147692,1767977438729,-500.0,0.00012228,2]
[401147693,1767977438738,-500.0,0.00012228,2]
[401147694,1767977438747,-500.0,0.00012228,2]
[401147695,1767977438757,-500.0,0.00012228,2]
[401147696,1767977438770,-500.0,0.00012228,2]
[401147697,1767977438780,-500.0,0.00012228,2]
[401147698,1767977438790,-500.0,0.00012228,2]
[401147699,1767977438800,-500.0,0.00012228,2]
[401147700,1767977438811,-500.0,0.00012228,2]
[401147701,1767977438820,-500.0,0.00012228,2]
[401147702,1767977438830,-500.0,0.00012228,2]
[401147703,1767977438841,-500.0,0.00012228,2]
[401147704,1767977438851,-500.0,0.00012228,2]
[401147705,1767977438861,-500.0,0.00012228,2]
[401147706,1767977438876,-500.0,0.00012228,2]
[401147707,1767977438892,-500.0,0.00012228,2]
[401147708,1767977438902,-500.0,0.00012228,2]
[401147709,1767977438914,-500.0,0.00012228,2]
[401147710,1767977438924,-500.0,0.00012228,2]
[401147711,1767977438934,-500.0,0.00012228,2]
[401147712,1767977438944,-500.0,0.00012228,2]
[401147713,1767977438953,-500.0,0.00012228,2]
[401147714,1767977438963,-500.0,0.00012228,2]
[401147715,1767977438973,-500.0,0.00012228,2]
[401147716,1767977438983,-500.0,0.00012228,2]
[401147717,1767977438993,-500.0,0.00012228,2]
[401147718,1767977439003,-500.0,0.00012228,2]
[401147719,1767977439012,-500.0,0.00012228,2]
[401147720,1767977439022,-500.0,0.00012228,2]
[401147721,1767977439031,-500.0,0.00012228,2]
[401147722,1767977439040,-500.0,0.00012228,2]
[401147723,1767977439050,-500.0,0.00012228,2]
[401147724,1767977439060,-500.0,0.00012228,2]
[401147725,1767977439070,-500.0,0.00012228,2]
[401147726,1767977439079,-500.0,0.00012228,2]
[401147727,1767977439089,-500.0,0.00012228,2]
[401147728,1767977439100,-500.0,0.00012228,2]
[401147729,1767977439109,-500.0,0.00012228,2]
[401147730,1767977439119,-500.0,0.00012228,2]
[401147731,1767977439130,-500.0,0.00012228,2]
[401147732,1767977439139,-500.0,0.00012228,2]
[401147733,1767977439148,-500.0,0.00012228,2]
[401147734,1767977439158,-500.0,0.00012228,2]
[401147735,1767977439168,-500.0,0.00012228,2]
[401147736,1767977439178,-500.0,0.00012228,2]
[401147737,1767977439188,-500.0,0.00012228,2]
[401147738,1767977439198,-500.0,0.00012228,2]
[401147739,1767977439208,-500.0,0.00012228,2]
[401147740,1767977439218,-500.0,0.00012228,2]
[401147741,1767977439228,-500.0,0.00012228,2]
[401147742,1767977439237,-266.35992472,0.00012228,2]